{"text_format":"3","workbook":"xlsx","n_sheets":2,"sheets":["Početak","Faktura servisa"],"not_rendered":{"images":1,"defined_names":1},"read":"whole","date_system":"1900"}

{"sheet":"Početak","index":0,"n_rows":8,"n_cols":2,"rows_kept":8}
[null,"O OVOM PREDLOŠKU"]
[null,"Upotrijebite ovaj predložak da biste stvorili jednostavnu fakturu za uslugu."]
[null,"Unesite broj fakture, datum, naziv tvrtke, adresu, slogan i podatke o primatelju računa."]
[null,"Podatke unesite u tablice."]
[null,"Ukupan zbroj automatski se izračunava."]
[null,"Napomena: "]
[null,"dodatne su upute navedene u stupcu A na radnom listu FAKTURA SERVISA. Ovaj je tekst namjerno skriven. Da biste uklonili tekst, odaberite stupac A, a zatim odaberite IZBRIŠI. Da biste otkrili tekst, odaberite stupac A, a zatim promijenite boju fonta."]
[null,"Da saznate više o tablicama, pritisnite SHIFT i zatim F10 unutar tablice, odaberite opciju TABLICA, a potom odaberite ZAMJENSKI TEKST."]

{"sheet":"Faktura servisa","index":1,"n_rows":44,"n_cols":5,"rows_kept":44,"merged":[[0,1,0,2],[0,3,0,4],[2,1,2,3],[3,1,3,3],[4,1,4,2],[5,1,5,2],[6,1,6,2],[7,1,7,2],[41,1,41,2],[41,3,41,4],[43,1,43,4]]}
[null,"U ovoj se ćeliji nalazi rezervirano mjesto za logotip.",null,"RAČUN"]
[]
[null,"Naziv vaše tvrtke"]
[null,"Slogan tvrtke"]
[null,"Adresa",null,"BR. RAČUNA","Br."]
[null,"Poštanski broj, grad",null,"DATUM ",{"$f":"TODAY()","v":"2022-04-27"}]
[null,"Telefonski broj Broj faksa",null,"ID KUPCA ","ID"]
[null,"E-pošta"]
[null,"PRIMA","Ime i prezime"]
[null,null,"Naziv tvrtke"]
[null,null,"Adresa"]
[null,null,"Poštanski broj, grad"]
[null,null,"Telefonski broj"]
[null,"PRODAVAČ","RADNO MJESTO","UVJETI PLAĆANJA","KRAJNJI ROK"]
[{"$nulls":3},"Plaćanje po dospjeću"]
[]
[null,"KOLIČINA","OPIS","JEDINIČNA CIJENA","ZBROJ RETKA"]
[{"$nulls":4},{"$f":"IF(SUM(B18)>0,SUM(B18*'Faktura servisa'!$D18),\"\")","v":""}]
[{"$nulls":4},{"$f":"IF(SUM(B19)>0,SUM(B19*'Faktura servisa'!$D19),\"\")","v":""}]
[{"$nulls":4},{"$f":"IF(SUM(B20)>0,SUM(B20*'Faktura servisa'!$D20),\"\")","v":""}]
[{"$nulls":4},{"$f":"IF(SUM(B21)>0,SUM(B21*'Faktura servisa'!$D21),\"\")","v":""}]
[{"$nulls":4},{"$f":"IF(SUM(B22)>0,SUM(B22*'Faktura servisa'!$D22),\"\")","v":""}]
[{"$nulls":4},{"$f":"IF(SUM(B23)>0,SUM(B23*'Faktura servisa'!$D23),\"\")","v":""}]
[{"$nulls":4},{"$f":"IF(SUM(B24)>0,SUM(B24*'Faktura servisa'!$D24),\"\")","v":""}]
[{"$nulls":4},{"$f":"IF(SUM(B25)>0,SUM(B25*'Faktura servisa'!$D25),\"\")","v":""}]
[{"$nulls":4},{"$f":"IF(SUM(B26)>0,SUM(B26*'Faktura servisa'!$D26),\"\")","v":""}]
[{"$nulls":4},{"$f":"IF(SUM(B27)>0,SUM(B27*'Faktura servisa'!$D27),\"\")","v":""}]
[{"$nulls":4},{"$f":"IF(SUM(B28)>0,SUM(B28*'Faktura servisa'!$D28),\"\")","v":""}]
[{"$nulls":4},{"$f":"IF(SUM(B29)>0,SUM(B29*'Faktura servisa'!$D29),\"\")","v":""}]
[{"$nulls":4},{"$f":"IF(SUM(B30)>0,SUM(B30*'Faktura servisa'!$D30),\"\")","v":""}]
[{"$nulls":4},{"$f":"IF(SUM(B31)>0,SUM(B31*'Faktura servisa'!$D31),\"\")","v":""}]
[{"$nulls":4},{"$f":"IF(SUM(B32)>0,SUM(B32*'Faktura servisa'!$D32),\"\")","v":""}]
[{"$nulls":4},{"$f":"IF(SUM(B33)>0,SUM(B33*'Faktura servisa'!$D33),\"\")","v":""}]
[{"$nulls":4},{"$f":"IF(SUM(B34)>0,SUM(B34*'Faktura servisa'!$D34),\"\")","v":""}]
[{"$nulls":4},{"$f":"IF(SUM(B35)>0,SUM(B35*'Faktura servisa'!$D35),\"\")","v":""}]
[{"$nulls":4},{"$f":"IF(SUM(B36)>0,SUM(B36*'Faktura servisa'!$D36),\"\")","v":""}]
[{"$nulls":4},{"$f":"IF(SUM(B37)>0,SUM(B37*'Faktura servisa'!$D37),\"\")","v":""}]
[{"$nulls":3},"PODZBROJ",{"$f":"IF(SUM(E18:E37)>0,SUM(E18:E37),\"\")","v":""}]
[{"$nulls":3},"POREZ NA PROMET"]
[{"$nulls":3},"ZBROJ",{"$f":"IF(SUM(E38)>0,SUM((E38*E39)+E38),\"\")","v":""}]
[]
[null,"Sva plaćanja idu na račun tvrtke",null,{"$f":"B3","v":"Naziv vaše tvrtke"}]
[]
[null,"HVALA VAM NA POVJERENJU!"]